bitfinex-derivatives/quotes_ETHF0:USTF0_20250110
["timestamp","ask_amount","ask_price","bid_price","bid_amount"]
[1736518421868,0.3063,3264.9,3264.7,0.30631]
[1736518422070,3.65834883,3265.5,3264.6,3.2078]
[1736518422363,0.76564,3265.4,3264.6,3.2078]
[1736518422663,3.2078,3265.2,3264.6,3.2078]
[1736518422868,0.30632,3264.7,3264.6,3.2078]
[1736518423169,0.30632,3264.7,3264.1,3.51417]
[1736518423170,0.30637,3264.2,3264.1,3.51417]
[1736518423467,0.30636,3264.3,3264.1,3.51417]
[1736518423775,0.30635,3264.5,3264.1,3.2078]
[1736518424064,3.13687114,3264.6,3264.1,3.2078]
[1736518424262,3.13687114,3264.6,3263.6,6.10052883]
[1736518424472,0.30638,3264.1,3263.6,3.2078]
[1736518424765,0.30636,3264.3,3263.9,0.30639]
[1736518424962,3.13687114,3264.6,3263.7,40.8]
[1736518425155,0.30634,3264.5,3264.2,0.30636]
[1736518425572,0.30634,3264.5,3264.1,0.30637]
[1736518425772,0.30636,3264.3,3264.0,0.30638]
[1736518426062,3.13687114,3264.6,3263.8,0.3064]
[1736518426372,3.13687114,3264.6,3263.7,40.8]
[1736518426673,0.76585,3264.5,3263.7,40.8]
[1736518426969,0.30637,3264.1,3263.8,0.3064]
[1736518427162,3.13687114,3264.6,3263.7,40.8]
[1736518427370,3.13687114,3264.6,3264.0,3.2078]
[1736518427665,1.60957114,3264.6,3264.5,0.30634]
[1736518427859,1.60957114,3264.6,3264.0,6.10052883]
[1736518428167,1.91590114,3264.6,3264.3,0.30635]
[1736518428369,1.60957114,3264.6,3264.5,40.8]
[1736518428868,1.60957114,3264.6,3264.5,41.10634]
[1736518429161,0.00137114,3264.6,3264.5,44.31414]
[1736518429366,1.5952,3265.5,3264.5,44.0078]
[1736518429560,1.90145,3265.5,3265.2,0.30627]
[1736518429760,1.90145,3265.5,3264.9,3.2078]
[1736518429761,1.5952,3265.5,3264.9,3.2078]
[1736518429960,0.30626,3265.4,3265.1,0.30627]
[1736518430160,1.6375,3265.8,3265.3,3.2078]
[1736518430359,1.6375,3265.8,3265.4,0.30624]
[1736518430360,1.94372,3265.8,3265.4,0.30624]
[1736518430561,1.6375,3265.8,3264.9,3.2078]
[1736518431167,0.30623,3265.7,3265.4,0.30625]
[1736518431364,0.30622,3265.7,3265.4,0.30625]
[1736518431564,1.6375,3265.8,3265.6,0.30623]
[1736518431759,1.6375,3265.8,3265.3,3.2078]
[1736518432168,3.2078,3265.6,3264.4,3.2078]
[1736518432368,3.2078,3265.1,3264.0,6.10052883]
[1736518432569,3.1072,3265.0,3264.0,6.10052883]
[1736518432773,0.76564,3265.4,3264.4,3.2078]
[1736518432973,0.30631,3264.9,3264.5,40.8]
[1736518433172,0.30628,3265.2,3264.8,3.5141]
[1736518433365,0.30627,3265.3,3265.0,0.30628]
[1736518433772,1.555,3265.4,3264.8,3.2078]
[1736518434069,1.86126,3265.4,3265.1,0.30628]
[1736518434472,1.555,3265.4,3264.8,3.2078]
[1736518434673,1.555,3265.4,3265.3,0.30626]
[1736518435174,1.79163,3265.7,3265.4,0.30625]
[1736518435368,0.30624,3265.6,3265.3,0.30625]
[1736518435568,0.30624,3265.6,3265.3,0.30626]
[1736518435769,0.30625,3265.5,3265.2,0.30626]
[1736518435970,0.76559,3265.6,3264.8,0.3063]
[1736518436171,3.2078,3265.3,3264.7,3.2078]
[1736518436369,0.30628,3265.2,3264.8,0.30631]
[1736518436567,0.30628,3265.1,3264.8,0.3063]
[1736518436869,4.6932,3265.7,3264.7,3.2078]
[1736518436870,2.89272883,3265.5,3264.7,3.2078]
[1736518437262,2.89272883,3265.5,3264.3,3.2078]
[1736518437263,0.30631,3264.8,3264.3,3.2078]
[1736518437470,0.30639,3264.0,3263.7,0.30641]
[1736518437666,3.2078,3264.6,3263.6,0.24177249]
[1736518437667,0.3064,3263.9,3263.6,0.30642]
[1736518437865,0.30638,3264.1,3263.7,0.30641]
[1736518438068,3.97363,3264.6,3263.5,3.2078]
[1736518438272,0.30635,3264.4,3263.5,3.2078]
[1736518438470,0.30634,3264.5,3264.2,0.30636]
[1736518438671,6.12664251,3264.6,3263.9,3.2078]
[1736518439068,5.82031251,3264.6,3263.4,0.7661]
[1736518439272,0.30634,3264.5,3264.1,0.30637]
[1736518439474,6.2603,3264.7,3263.8,3.2078]
[1736518439671,0.30634,3264.5,3264.1,0.30637]
[1736518439871,0.30634,3264.5,3264.2,0.30636]
[1736518440067,6.2603,3264.7,3263.8,3.2078]
[1736518440268,0.30636,3264.3,3264.0,0.30638]
[1736518440572,5.82031251,3264.6,3263.4,3.97391]
[1736518440775,5.82031251,3264.6,3263.4,3.2078]
[1736518440972,5.82031251,3264.6,3263.9,0.30639]
[1736518441177,5.82031251,3264.6,3264.2,3.2078]
[1736518441476,5.82031251,3264.6,3263.5,1.781]
[1736518441881,0.76585,3264.5,3263.6,0.30642]
[1736518442176,0.30637,3264.1,3263.8,0.3064]
[1736518442371,5.82031251,3264.6,3263.8,3.2078]
[1736518442681,5.82031251,3264.5,3264.4,0.30635]
[1736518442881,5.82031251,3264.5,3264.4,43.99907883]
[1736518443080,5.82031251,3264.5,3264.4,48.99907883]
[1736518443479,5.08164251,3264.5,3264.4,48.99907883]
[1736518443684,8.59916251,3265.8,3265.4,0.30625]
[1736518443879,5.08164251,3265.8,3265.3,3.2078]
[1736518444077,5.08164251,3265.8,3265.7,0.30622]
[1736518444785,0.30618,3266.3,3266.0,0.30619]
[1736518444986,6.98437502,3266.5,3265.7,40.8]
[1736518445277,0.30616,3266.4,3266.0,0.30619]
[1736518445480,6.98437502,3266.5,3265.7,40.8]
[1736518445781,7.29052502,3266.5,3266.1,0.30619]
[1736518445986,6.4191,3266.6,3266.3,0.30617]
[1736518446285,6.72525,3266.6,3266.2,0.30617]
[1736518446484,0.30615,3266.5,3266.1,0.30619]
[1736518446981,0.30616,3266.4,3266.1,0.30619]
[1736518447284,0.30616,3266.4,3266.0,3.2078]
[1736518447285,3.2078,3266.6,3266.0,3.2078]
[1736518447489,3.2078,3267.0,3266.4,3.2078]
[1736518447880,1.5649,3266.9,3266.4,3.2078]
[1736518448076,0.30615,3266.5,3266.0,3.2078]
[1736518448281,0.30615,3266.6,3266.1,0.30618]
[1736518448583,0.30619,3266.1,3266.0,3.2078]
[1736518448787,3.2078,3266.2,3265.4,2.89272883]
[1736518448984,0.3062,3266.0,3265.4,43.69272883]
[1736518449187,3.2078,3266.7,3265.7,3.2078]
[1736518449381,1.5407,3266.8,3265.7,3.2078]
[1736518449683,1.5407,3266.8,3266.4,0.30616]
[1736518449684,1.84683,3266.8,3266.4,0.30616]
[1736518449876,1.5407,3266.8,3266.4,0.30616]
[1736518450080,0.30614,3266.7,3266.3,0.30616]
[1736518450284,0.30613,3266.7,3266.2,3.2078]
[1736518450486,1.5407,3266.8,3266.2,3.2078]
[1736518450992,0.30614,3266.7,3266.3,0.30617]
[1736518451185,1.5407,3266.8,3266.2,3.2078]
[1736518451486,1.5649,3266.9,3266.6,3.2078]
[1736518451684,6.98437502,3267.5,3266.7,0.30613]
[1736518451891,6.98437502,3267.5,3267.3,0.30607]
[1736518452090,6.98437502,3267.5,3266.6,6.10052883]
[1736518452292,6.98437502,3267.5,3266.7,0.76533]
[1736518452486,6.98437502,3267.5,3267.2,0.30608]
[1736518452687,6.98437502,3267.5,3266.6,6.10052883]
[1736518452895,0.30607,3267.4,3267.0,0.30609]
[1736518453088,3.2078,3267.6,3266.6,6.10052883]
[1736518453289,0.30611,3267.0,3266.6,3.51394]
[1736518453497,3.2078,3267.1,3266.2,3.2078]
[1736518453789,0.30613,3266.8,3266.4,0.30615]
[1736518454095,3.2486,3266.9,3266.2,6.10052883]
[1736518454283,0.30612,3266.8,3266.3,0.30616]
[1736518454486,3.2486,3266.9,3266.2,6.10052883]
[1736518454699,3.2078,3267.6,3266.7,2.89272883]
[1736518454988,12.52030002,3268.5,3267.8,0.30602]
[1736518455190,12.52030002,3268.5,3267.5,6.10052883]
[1736518455386,1.5066,3268.4,3267.5,6.10052883]
[1736518455689,3.0975,3268.4,3267.5,6.10052883]
[1736518455893,0.306,3268.1,3267.5,6.10052883]
[1736518456088,3.2078,3268.1,3267.5,3.2078]
[1736518456296,3.0975,3268.4,3267.5,3.2078]
[1736518456595,3.0975,3268.4,3266.8,3.2078]
[1736518456596,3.2078,3267.6,3266.8,3.2078]
[1736518456788,3.0975,3268.4,3267.4,0.30606]
[1736518456789,0.30602,3267.9,3267.4,0.30606]
[1736518457094,1.5494,3267.8,3267.7,0.30604]
[1736518457492,1.5494,3267.8,3267.7,3.51384]
[1736518457893,0.30598,3268.3,3267.9,0.30601]
[1736518458196,1.5066,3268.4,3267.9,0.30601]
[1736518458395,0.306,3268.1,3267.7,3.2078]
[1736518458699,1.5066,3268.4,3267.7,3.2078]
[1736518459291,1.81258,3268.4,3268.0,0.306]
[1736518459493,1.5066,3268.4,3268.0,40.8]
[1736518459796,0.306,3268.1,3267.7,3.2078]
[1736518459996,0.30598,3268.3,3267.9,0.30602]
[1736518460192,0.30599,3268.2,3267.8,0.30602]
[1736518460394,0.30603,3267.8,3267.7,3.2078]
[1736518460797,1.5954,3268.1,3267.3,3.2078]
[1736518461001,1.5045,3267.7,3267.5,0.30605]
[1736518461298,1.5045,3267.7,3267.4,0.30606]
[1736518461596,1.5045,3267.7,3267.3,3.2078]
[1736518461597,1.5045,3267.7,3267.5,0.30605]
[1736518461800,3.97255,3269.2,3267.5,0.76515]
[1736518461995,0.30595,3268.7,3268.3,0.30598]
[1736518462198,3.2078,3268.7,3267.9,3.2078]
[1736518462397,3.2078,3268.1,3267.5,3.2078]
[1736518462599,3.1121,3268.0,3267.5,3.2078]
[1736518463203,3.2078,3268.5,3267.5,3.2078]
[1736518463402,0.30603,3267.8,3267.5,3.51385]
[1736518463696,3.2078,3268.5,3267.5,3.2078]
[1736518463894,3.0505,3268.4,3267.5,3.2078]
[1736518464296,3.0505,3268.4,3267.0,40.8]
[1736518464297,0.30608,3267.3,3267.0,43.99881883]
[1736518464496,0.30607,3267.4,3267.0,2.89272883]
[1736518464702,1.4947,3267.2,3266.9,3.2078]
[1736518465002,1.4947,3267.2,3267.1,0.30609]
[1736518465397,1.4947,3267.2,3266.9,44.0078]
[1736518465906,1.4947,3267.2,3267.1,0.30609]
[1736518466097,1.4947,3267.2,3267.0,0.3061]
[1736518466299,1.4947,3267.2,3266.9,44.0078]
[1736518466598,1.4947,3267.2,3266.6,2.89272883]
[1736518466803,0.3061,3267.1,3266.8,0.30612]
[1736518467001,1.4947,3267.2,3266.5,3.2078]
[1736518467002,4.7025,3267.2,3266.5,3.2078]
[1736518467203,0.30614,3266.6,3266.5,3.2078]
[1736518467398,1.07133,3267.1,3266.2,0.30617]
[1736518467704,0.30616,3266.4,3266.3,40.8]
[1736518468101,1.5277,3266.7,3265.8,2.89272883]
[1736518468299,3.2078,3266.2,3265.6,3.2078]
[1736518468499,1.5197,3266.3,3266.0,3.2078]
[1736518468704,1.5197,3266.3,3266.1,40.8]
[1736518469097,1.82587,3266.3,3265.9,0.30621]
[1736518469402,1.82587,3266.3,3265.8,3.2078]
[1736518469403,0.30619,3266.2,3265.8,3.2078]
[1736518469703,0.3062,3266.0,3265.6,0.30623]
[1736518469900,0.30618,3266.2,3265.8,0.30621]
[1736518470501,0.3062,3266.0,3265.6,0.30623]
[1736518470704,0.30619,3266.1,3265.7,0.30622]
[1736518471098,0.30618,3266.2,3265.8,0.30621]
[1736518471301,0.30618,3266.2,3265.7,0.30622]
[1736518471503,0.30618,3266.2,3265.4,6.10052883]
[1736518471696,0.30619,3266.1,3265.7,0.30622]
[1736518471903,0.30618,3266.2,3265.4,6.10052883]
[1736518472402,1.5197,3266.3,3265.4,6.10052883]
[1736518472807,0.30622,3265.8,3265.4,6.40677883]
[1736518473006,1.5197,3266.3,3265.4,6.10052883]
[1736518473309,1.5197,3266.3,3266.0,0.3062]
[1736518474000,0.30618,3266.2,3265.8,3.51401]
[1736518474207,1.82587,3266.3,3266.1,40.8]
[1736518474410,1.5197,3266.3,3266.1,40.8]
[1736518474612,1.82588,3266.3,3266.1,40.8]
[1736518474903,0.3062,3266.0,3265.8,3.2078]
[1736518475409,0.30621,3265.9,3265.8,44.0078]
[1736518475702,0.30621,3265.9,3265.8,3.2078]
[1736518475908,3.2078,3266.2,3265.4,3.2078]
[1736518476111,0.30624,3265.5,3265.4,3.2078]
[1736518476308,0.76547,3266.1,3264.6,2.89272883]
[1736518476499,1.6173,3265.4,3264.7,41.10631]
[1736518476704,1.6173,3265.4,3264.8,3.2078]
[1736518476705,1.6069,3265.3,3264.8,3.2078]
[1736518477001,1.6173,3265.4,3265.3,0.30626]
[1736518477211,1.856,3266.0,3265.2,3.2078]
[1736518477508,1.856,3266.0,3265.3,0.30626]
[1736518477706,1.5498,3266.0,3264.8,3.2078]
[1736518477902,0.30625,3265.5,3265.1,0.30627]
[1736518478105,0.30624,3265.6,3264.9,0.3063]
[1736518478403,0.30624,3265.6,3264.8,3.2078]
[1736518478404,3.2078,3265.8,3264.8,3.2078]
[1736518478702,3.2078,3265.8,3265.3,0.30626]
[1736518479010,0.30623,3265.7,3265.3,0.30626]
[1736518479214,0.30624,3265.5,3265.2,3.2078]
[1736518479510,0.30625,3265.5,3264.9,3.2078]
[1736518479712,1.856,3266.0,3265.7,0.30622]
[1736518479905,0.30623,3265.7,3265.4,0.30625]
[1736518480101,1.5498,3266.0,3265.3,3.51406]
[1736518480400,0.30626,3265.4,3265.1,0.30628]
[1736518480799,0.30626,3265.4,3264.9,3.2078]
[1736518481000,3.97332,3265.9,3264.9,3.2078]
[1736518481001,0.30628,3265.2,3264.9,0.3063]
[1736518481208,0.76556,3265.8,3264.8,0.30631]
[1736518481209,0.76559,3265.6,3264.8,0.30631]
[1736518481407,2.89272883,3265.4,3264.5,3.2078]
[1736518481609,3.97346,3265.3,3264.4,0.30634]
[1736518481801,0.30633,3264.6,3264.3,0.30635]
[1736518482110,0.76571,3265.1,3264.1,3.2078]
[1736518482305,1.5658,3265.0,3264.1,3.2078]
[1736518483004,3.2078,3264.8,3264.1,3.2078]
[1736518483507,3.1078,3264.8,3264.1,3.2078]
[1736518483715,1.5658,3265.0,3264.1,3.2078]
[1736518484211,0.30636,3264.3,3264.1,44.0078]
[1736518484409,0.30637,3264.2,3264.1,44.0078]
[1736518484809,0.3064,3263.9,3263.6,3.51422]
[1736518485314,1.5771,3264.1,3263.6,3.51422]
[1736518485315,1.88348,3264.1,3263.7,40.8]
[1736518485508,1.88348,3264.1,3263.8,0.3064]
[1736518485705,0.30638,3264.0,3263.7,41.10641]
[1736518486009,1.5771,3264.1,3263.7,40.8]
[1736518486513,0.30638,3264.0,3263.7,40.8]
[1736518486709,0.30638,3264.0,3263.7,41.10641]
[1736518486905,0.3064,3263.9,3263.7,40.8]
[1736518487411,0.3064,3263.8,3263.7,40.8]
[1736518487612,3.2078,3263.9,3262.8,3.2078]
[1736518487807,0.30645,3263.4,3263.0,0.30647]
[1736518488013,1.5566,3263.8,3263.1,40.8]
[1736518488207,1.4918,3263.7,3263.2,3.2078]
[1736518488418,0.30645,3263.3,3263.2,3.2078]
[1736518488612,0.30645,3263.4,3263.2,3.2078]
[1736518488811,1.4918,3263.7,3263.2,3.2078]
[1736518489017,1.5771,3264.1,3263.2,3.2078]
[1736518489219,0.30641,3263.8,3263.4,0.30644]
[1736518489517,0.30641,3263.7,3263.3,0.30644]
[1736518489721,0.30638,3264.0,3263.3,0.30644]
[1736518490015,0.30638,3264.0,3263.3,0.30645]
[1736518490214,0.30643,3263.5,3263.2,3.51425]
[1736518490416,0.30644,3263.4,3263.2,3.2078]
[1736518490613,3.2078,3264.0,3263.2,3.2078]
[1736518490811,0.30641,3263.8,3263.4,0.30643]
[1736518491017,1.5771,3264.1,3263.2,3.2078]
[1736518491415,1.5771,3264.1,3263.6,3.2078]
[1736518492113,1.88348,3264.1,3263.7,0.30641]
[1736518492420,0.30643,3263.6,3263.2,0.30645]
[1736518492622,0.30644,3263.5,3263.2,3.2078]
[1736518492916,3.97377,3264.0,3263.1,40.8]
[1736518493419,0.30643,3263.5,3263.2,0.30646]
[1736518493614,0.50695948,3265.5,3263.4,6.10052883]
[1736518493922,3.2078,3265.6,3264.7,3.2078]
[1736518494114,3.2078,3265.2,3264.8,40.8]
[1736518494313,1.6039,3265.1,3264.8,40.8]
[1736518494519,1.6039,3265.1,3264.1,2.89272883]
[1736518494520,0.3063,3264.9,3264.4,0.30634]
[1736518494718,0.30631,3264.8,3264.3,0.30635]
[1736518495217,0.30631,3264.8,3264.2,3.2078]
[1736518495218,3.1674,3265.1,3264.4,40.8]
[1736518495412,3.1674,3265.1,3264.2,3.2078]
[1736518495413,0.30635,3264.4,3264.0,0.30638]
[1736518495615,3.2078,3264.8,3263.8,6.10052883]
[1736518495809,3.2078,3264.8,3264.3,0.30635]
[1736518495810,0.30632,3264.7,3264.3,0.30635]
[1736518496016,3.2078,3264.8,3263.9,40.8]
[1736518496233,0.30634,3264.5,3263.9,40.8]
[1736518496414,0.30634,3264.5,3264.2,0.30636]
[1736518496720,1.80333,3264.6,3264.3,0.30635]
[1736518497018,1.497,3264.6,3263.8,3.2078]
[1736518497413,0.30635,3264.4,3264.1,0.30637]
[1736518497614,0.30635,3264.4,3263.8,3.2078]
[1736518497615,1.497,3264.6,3263.8,6.10052883]
[1736518497817,1.497,3264.6,3264.4,0.30634]
[1736518498620,1.497,3264.6,3263.9,0.76599]
[1736518498826,1.497,3264.6,3263.8,3.2078]
[1736518499320,0.30637,3264.2,3264.0,0.30638]
[1736518499523,1.497,3264.6,3263.8,3.2078]
[1736518499820,1.5599,3264.1,3263.8,3.2078]
[1736518500018,1.5599,3264.1,3263.9,0.30639]
[1736518500217,1.5599,3264.1,3263.8,3.2078]
[1736518500422,1.5599,3264.1,3263.9,0.30639]
[1736518500918,0.30639,3264.0,3263.8,3.2078]
[1736518501115,3.2078,3263.9,3263.1,3.2078]
[1736518501317,4.7829,3263.9,3263.1,3.2078]
[1736518501820,1.5599,3264.1,3263.5,3.2078]
[1736518502020,1.5599,3264.1,3263.9,3.2078]
[1736518502317,3.2078,3265.8,3263.9,3.2078]
[1736518502513,3.2078,3265.8,3265.0,0.30629]
[1736518502514,0.30626,3265.3,3265.0,0.30629]
[1736518502714,0.30627,3265.3,3265.0,0.30629]
[1736518502916,1.5768,3265.4,3265.0,0.30628]
[1736518503118,0.30626,3265.3,3265.0,0.30628]
[1736518503321,1.5768,3265.4,3264.8,3.2078]
[1736518503510,1.5768,3265.4,3265.3,0.30626]
[1736518503718,1.88305,3265.4,3265.1,0.30628]
[1736518503918,1.5768,3265.4,3264.7,3.2078]
[1736518504420,3.2078,3264.8,3264.1,3.2078]
[1736518504626,0.30641,3263.7,3263.6,3.2078]
[1736518505211,1.5323,3264.2,3263.8,0.3064]
[1736518505412,1.5323,3264.2,3263.6,3.2078]
[1736518505728,0.30641,3263.7,3263.6,3.2078]
[1736518506221,0.76599,3263.9,3263.1,3.2078]
[1736518506422,0.76597,3264.0,3263.1,3.51426]
[1736518506619,0.30644,3263.4,3263.1,3.51426]
[1736518506817,1.5907,3263.8,3263.1,3.2078]
[1736518507023,1.5907,3263.8,3263.1,3.51426]
[1736518507218,0.30644,3263.5,3263.1,3.51426]
[1736518507514,0.30644,3263.4,3263.1,3.51427]
[1736518507714,1.5907,3263.8,3263.1,3.2078]
[1736518507921,1.2907,3263.8,3263.1,3.2078]
[1736518508125,1.83867,3264.2,3263.8,0.3064]
[1736518508422,0.30642,3263.6,3263.5,3.2078]
[1736518508627,0.30643,3263.5,3263.1,3.2078]
[1736518508820,0.30646,3263.2,3263.1,3.2078]
[1736518509527,1.5001,3263.4,3263.1,3.2078]
[1736518509827,0.30645,3263.3,3263.1,3.2078]
[1736518510230,1.5001,3263.4,3263.1,3.2078]
[1736518510724,0.30644,3263.5,3263.1,3.51426]
[1736518510924,2.27898,3264.0,3263.1,3.2078]
[1736518510925,0.30646,3263.2,3263.1,3.2078]
[1736518511122,0.30646,3263.2,3263.1,40.8]
[1736518511326,0.30651,3262.7,3262.6,3.2078]
[1736518512827,0.30651,3262.7,3262.1,3.2078]
[1736518513030,0.30655,3262.2,3262.1,3.2078]
[1736518513223,2.89272883,3262.7,3261.6,3.2078]
[1736518513529,0.76625,3262.8,3262.0,3.2078]
[1736518513733,5.47049,3263.1,3262.0,3.2078]
[1736518513929,0.30653,3262.5,3262.1,0.30656]
[1736518514130,0.7662,3263.0,3262.2,40.8]
[1736518514327,0.30654,3262.3,3262.2,40.8]
[1736518514637,0.30656,3262.1,3262.0,3.2078]
[1736518514825,3.2078,3262.5,3262.0,3.2078]
[1736518515028,0.30656,3262.1,3262.0,44.0078]
[1736518515726,3.97414,3262.5,3261.6,3.2078]
[1736518515932,0.30665,3261.2,3261.0,3.2078]
[1736518516130,6.10052883,3261.5,3260.6,3.2078]
[1736518516330,6.10052883,3261.5,3260.5,4.76174453]
[1736518516331,0.76658,3261.4,3260.5,4.76174453]
[1736518516629,2.89272883,3261.1,3260.2,3.2078]
[1736518516928,0.30669,3260.8,3260.3,41.10673]
[1736518517135,1.4919,3261.0,3260.6,3.2078]
[1736518517433,2.89272883,3262.3,3260.6,3.2078]
[1736518517639,1.4919,3262.4,3261.8,0.30659]
[1736518517829,0.30657,3262.1,3261.7,3.2078]
[1736518518129,1.4919,3262.4,3261.7,3.2078]
[1736518518431,1.4919,3262.4,3261.3,3.2078]
[1736518518432,3.2078,3262.1,3261.3,3.2078]
[1736518518628,0.30663,3261.4,3260.9,0.30667]
[1736518518821,2.89272883,3261.4,3260.6,3.2078]
[1736518519031,0.30669,3260.7,3260.6,3.2078]
[1736518519227,3.2078,3261.2,3260.0,3.2078]
[1736518519427,0.30672,3260.5,3260.2,0.30674]
[1736518519623,0.3067,3260.7,3260.0,3.2078]
[1736518519932,0.30671,3260.6,3260.2,0.30673]
[1736518520333,0.3067,3260.6,3260.2,0.30674]
[1736518520530,0.3067,3260.6,3260.0,3.2078]
[1736518520729,0.3067,3260.6,3260.2,0.30674]
[1736518520928,0.3067,3260.7,3260.2,0.30674]
[1736518521231,3.2078,3261.2,3260.1,0.30675]
[1736518521426,0.76667,3261.0,3260.0,3.2078]
[1736518521634,0.30675,3260.1,3260.0,3.2078]
[1736518521829,0.30674,3260.2,3260.0,3.2078]
[1736518522032,0.30675,3260.1,3260.0,3.2078]
[1736518522631,1.4679,3260.5,3260.0,3.2078]
[1736518522838,1.4679,3260.5,3259.6,0.76699]
[1736518522839,1.5868,3261.3,3260.4,3.2078]
[1736518523028,1.5868,3261.3,3260.5,3.2078]
[1736518523537,0.30665,3261.2,3260.7,0.30668]
[1736518523836,1.5868,3261.3,3261.2,0.30665]
[1736518524038,1.5868,3261.3,3261.2,41.10665]
[1736518524234,0.30661,3261.6,3261.2,41.10665]
[1736518524427,1.4685,3261.9,3261.2,40.8]
[1736518524628,1.4685,3261.9,3261.4,3.2078]
[1736518524836,1.4685,3261.9,3261.8,3.51439]
[1736518525029,1.4685,3261.9,3261.8,3.2078]
[1736518525438,0.30661,3261.7,3261.4,3.2078]
[1736518525634,1.4685,3261.9,3261.4,3.2078]
[1736518525932,0.30662,3261.5,3261.4,3.2078]
[1736518526130,1.4685,3261.9,3261.4,3.2078]
[1736518526131,0.30661,3261.6,3261.4,3.2078]
[1736518526435,1.4685,3261.9,3261.4,3.2078]
[1736518526436,1.77508,3261.9,3261.4,3.2078]
[1736518526739,3.2078,3262.5,3261.8,3.51439]
[1736518527037,0.30654,3262.3,3261.9,0.30658]
[1736518527241,1.5607,3262.4,3261.8,3.2078]
[1736518528140,1.86724,3262.4,3262.1,0.30656]
[1736518528435,1.86724,3262.4,3261.8,3.2078]
[1736518528436,1.5607,3262.4,3261.8,3.2078]
[1736518528635,0.3066,3261.7,3261.4,3.2078]
[1736518528842,0.30662,3261.5,3261.4,3.2078]
[1736518529229,3.2078,3262.3,3261.0,3.2078]
[1736518529436,0.30666,3261.1,3261.0,3.2078]
[1736518529734,0.30664,3261.3,3261.0,3.2078]
[1736518530038,1.4808,3261.8,3261.0,3.2078]
[1736518530242,0.30662,3261.5,3261.2,0.30665]
[1736518530539,1.4808,3261.8,3261.0,3.2078]
[1736518530540,0.30666,3261.1,3261.0,3.2078]
[1736518530737,6.43460494,3261.4,3259.4,1.768]
[1736518530942,0.30674,3260.3,3259.6,3.2078]
[1736518531237,3.2078,3260.7,3260.2,0.30674]
[1736518531537,0.76661,3261.3,3259.7,41.56697]
[1736518531538,3.0941,3261.4,3260.9,0.30667]
[1736518531743,0.30664,3261.3,3260.9,0.30667]
[1736518531938,0.30665,3261.2,3260.4,3.2078]
[1736518532239,0.30665,3261.2,3260.1,0.76687]
[1736518532240,1.5147,3261.4,3260.8,3.2078]
[1736518532433,1.5147,3261.4,3261.2,3.2078]
[1736518532738,0.30659,3261.9,3261.4,0.30662]
[1736518533045,3.2078,3262.1,3261.2,3.2078]
[1736518533046,0.30658,3262.0,3261.5,0.30661]
[1736518533438,1.5794,3262.3,3261.6,44.0078]
[1736518533631,0.30651,3262.7,3261.7,0.3066]
[1736518533939,0.30651,3262.7,3262.1,0.30655]
[1736518534139,0.30652,3262.6,3262.1,0.30655]
[1736518534340,3.2078,3262.9,3262.4,0.30653]
[1736518534341,3.51429,3262.9,3262.4,0.30653]
[1736518534647,1.5161,3263.2,3262.0,3.2078]
[1736518534942,0.3065,3262.8,3262.2,0.30655]
[1736518535142,0.3065,3262.8,3261.7,1.4804]
[1736518535143,3.2078,3262.5,3261.6,40.8]
[1736518535642,0.30654,3262.4,3261.9,3.2078]
[1736518535940,3.2078,3263.0,3262.0,0.30657]
[1736518536142,0.30653,3262.5,3261.6,40.8]
[1736518536347,3.2078,3263.0,3262.0,3.2078]
[1736518536735,0.3065,3262.8,3262.1,0.30655]
[1736518537031,0.3065,3262.8,3262.2,0.30655]
[1736518537236,0.3065,3262.8,3262.0,3.2078]
[1736518537436,3.51428,3263.0,3262.4,0.30653]
[1736518537637,3.2078,3263.0,3262.0,3.2078]
[1736518537936,0.3065,3262.9,3262.3,0.30654]
[1736518538137,0.30649,3262.9,3262.4,0.30653]
[1736518538340,3.2078,3263.0,3262.0,3.2078]
[1736518538643,0.3065,3262.8,3262.3,0.30654]
[1736518538943,0.3065,3262.8,3262.0,3.2078]
[1736518539140,0.3065,3262.8,3262.4,0.30653]
[1736518539445,3.2078,3263.0,3262.4,0.30653]
[1736518539446,0.30649,3262.9,3262.4,0.30653]
[1736518539741,1.5161,3263.2,3262.4,3.2078]
[1736518539939,0.30647,3263.1,3262.7,0.3065]
[1736518540137,1.5161,3263.2,3262.1,0.76641]
[1736518540339,1.5161,3263.2,3262.4,3.2078]
[1736518540649,0.30649,3262.9,3262.4,0.30653]
[1736518540840,0.3065,3262.8,3262.3,0.30654]
[1736518541036,0.3065,3262.8,3261.8,3.97428]
[1736518541037,0.3065,3262.8,3262.2,0.30655]
[1736518541239,1.5161,3263.2,3262.2,3.2078]
[1736518541436,1.5161,3263.2,3262.7,0.3065]
[1736518541647,1.5161,3263.2,3262.2,3.97418]
[1736518541846,3.51426,3263.3,3262.8,0.30649]
[1736518542143,3.2078,3263.3,3262.8,0.30649]
[1736518542343,0.30648,3263.0,3262.6,0.30651]
[1736518542545,3.2078,3263.3,3262.2,3.2078]
[1736518542733,0.30646,3263.2,3262.2,3.2078]
[1736518542938,0.30646,3263.2,3262.8,0.30649]
[1736518543139,0.30646,3263.2,3262.2,3.97419]
[1736518543438,0.30646,3263.2,3262.8,0.30649]
[1736518543848,3.2078,3263.3,3262.2,3.45970227]
[1736518544045,0.30647,3263.2,3262.7,0.3065]
[1736518544242,3.2078,3263.3,3262.2,3.45970227]
[1736518544443,1.4769,3263.6,3262.8,3.2078]
[1736518544638,1.4769,3263.6,3263.4,0.30644]